[Event "*** Titled Tuesday 3|2 Blitz (Late)"]
[Site "Chess.com"]
[Date "2016.12.06"]
[Round "3"]
[White "LawrenceTrent"]
[Black "Izoria123"]
[Result "0-1"]
[WhiteElo "2413"]
[BlackElo "2589"]
[TimeControl "180+2"]
[EndTime "17:32:47 PST"]
[Termination "Izoria123 won by resignation"]

1. e4 {[%clk 0:03:00]} 1... g6 {[%clk 0:03:01.4]} 2. Nc3 {[%clk 0:02:59.6]} 2...
Bg7 {[%clk 0:03:03.1]} 3. f4 {[%clk 0:03:00.6]} 3... c5 {[%clk 0:02:57.1]} 4.
Nf3 {[%clk 0:03:00.9]} 4... Nc6 {[%clk 0:02:58.5]} 5. Bb5 {[%clk 0:03:01]} 5...
Nd4 {[%clk 0:02:59.7]} 6. a4 {[%clk 0:03:01.4]} 6... e6 {[%clk 0:02:56.5]} 7. e5
{[%clk 0:02:57.9]} 7... a6 {[%clk 0:02:40.1]} 8. Bd3 {[%clk 0:02:52.8]} 8...
Nxf3+ {[%clk 0:02:27.2]} 9. Qxf3 {[%clk 0:02:52.4]} 9... d5 {[%clk 0:02:29.1]}
10. exd6 {[%clk 0:02:51.4]} 10... Qxd6 {[%clk 0:02:23.4]} 11. Ne4 {[%clk
0:02:51.4]} 11... Qc7 {[%clk 0:02:23.3]} 12. a5 {[%clk 0:02:43.3]} 12... Nf6
{[%clk 0:02:23.1]} 13. O-O {[%clk 0:02:41.6]} 13... O-O {[%clk 0:02:23.4]} 14.
Nxf6+ {[%clk 0:02:33.9]} 14... Bxf6 {[%clk 0:02:24.1]} 15. Be4 {[%clk
0:02:35.2]} 15... c4 {[%clk 0:02:11.3]} 16. c3 {[%clk 0:02:23.9]} 16... Rd8
{[%clk 0:02:06]} 17. Ra4 {[%clk 0:01:57.7]} 17... Bd7 {[%clk 0:01:53.7]} 18. Rb4
{[%clk 0:01:58.4]} 18... Bb5 {[%clk 0:01:54.9]} 19. Bxb7 {[%clk 0:01:54.4]}
19... Rd3 {[%clk 0:01:48]} 20. Bxa8 {[%clk 0:01:38.9]} 20... Rxf3 {[%clk
0:01:48.2]} 21. Bxf3 {[%clk 0:01:40.2]} 21... Be7 {[%clk 0:01:40.7]} 22. Rxb5
{[%clk 0:01:09.9]} 22... axb5 {[%clk 0:01:42.6]} 23. b4 {[%clk 0:01:07.4]} 23...
cxb3 {[%clk 0:01:42]} 24. Bb2 {[%clk 0:01:08.5]} 24... Qxa5 {[%clk 0:01:27.1]}
25. Ra1 {[%clk 0:01:09.7]} 25... Qb6+ {[%clk 0:01:24.8]} 26. Kf1 {[%clk
0:01:11]} 26... Bf6 {[%clk 0:01:24.1]} 27. g3 {[%clk 0:00:54]} 27... b4 {[%clk
0:01:20.7]} 28. Be2 {[%clk 0:00:34]} 28... Qc6 {[%clk 0:00:57.4]} 29. Rc1 {[%clk
0:00:31.4]} 29... Qh1+ {[%clk 0:00:56.5]} 30. Kf2 {[%clk 0:00:32.9]} 30... Qxh2+
{[%clk 0:00:57.7]} 31. Kf3 {[%clk 0:00:34.2]} 31... Qh5+ {[%clk 0:00:57.7]} 32.
Kf2 {[%clk 0:00:34.4]} 32... Qc5+ {[%clk 0:00:55.5]} 33. d4 {[%clk 0:00:35.5]}
33... Qb6 {[%clk 0:00:56.3]} 34. c4 {[%clk 0:00:32]} 34... Bxd4+ {[%clk
0:00:56.6]} 35. Bxd4 {[%clk 0:00:33.5]} 35... Qxd4+ {[%clk 0:00:58.5]} 36. Kg2
{[%clk 0:00:34.8]} 36... b2 {[%clk 0:00:59.1]} 37. Rb1 {[%clk 0:00:35.5]} 37...
Qe4+ {[%clk 0:00:59.9]} 0-1

[Event "*** Titled Tuesday 3|2 Blitz (Late)"]
[Site "Chess.com"]
[Date "2016.12.06"]
[Round "3"]
[White "Rating-Schmating"]
[Black "sorito"]
[Result "1-0"]
[WhiteElo "2244"]
[BlackElo "2343"]
[TimeControl "180+2"]
[EndTime "17:33:11 PST"]
[Termination "Rating-Schmating won by resignation"]

1. e4 {[%clk 0:03:01.9]} 1... d6 {[%clk 0:02:59.6]} 2. Nf3 {[%clk 0:03:02.5]}
2... Nf6 {[%clk 0:03:00.6]} 3. Nc3 {[%clk 0:03:03.9]} 3... Bg4 {[%clk 0:03:01]}
4. d4 {[%clk 0:03:03.2]} 4... e6 {[%clk 0:02:58.4]} 5. h3 {[%clk 0:03:04]} 5...
Bh5 {[%clk 0:02:57]} 6. Be2 {[%clk 0:03:04.8]} 6... d5 {[%clk 0:02:55.5]} 7.
exd5 {[%clk 0:03:02.5]} 7... exd5 {[%clk 0:02:55.7]} 8. Bg5 {[%clk 0:03:02.6]}
8... Be7 {[%clk 0:02:56.5]} 9. Qd2 {[%clk 0:03:03.7]} 9... O-O {[%clk
0:02:55.8]} 10. O-O-O {[%clk 0:03:04.4]} 10... c6 {[%clk 0:02:56.2]} 11. g4
{[%clk 0:03:04.6]} 11... Bg6 {[%clk 0:02:56.7]} 12. Ne5 {[%clk 0:03:05.8]} 12...
Nbd7 {[%clk 0:02:51.1]} 13. Nxg6 {[%clk 0:03:06.2]} 13... fxg6 {[%clk
0:02:50.8]} 14. Bd3 {[%clk 0:03:01.3]} 14... b5 {[%clk 0:02:50.1]} 15. f4 {[%clk
0:02:58.8]} 15... Nb6 {[%clk 0:02:49.7]} 16. f5 {[%clk 0:02:58.4]} 16... gxf5
{[%clk 0:02:50.7]} 17. Bxf5 {[%clk 0:02:58.9]} 17... Nc4 {[%clk 0:02:52.2]} 18.
Qe2 {[%clk 0:02:57.4]} 18... Qd6 {[%clk 0:02:31.5]} 19. Rde1 {[%clk 0:02:51.7]}
19... Rae8 {[%clk 0:02:32.1]} 20. Qe6+ {[%clk 0:02:45.9]} 20... Kh8 {[%clk
0:02:21.3]} 21. Bxf6 {[%clk 0:02:43.2]} 21... Rxf6 {[%clk 0:01:42.3]} 22. Qd7
{[%clk 0:02:35.1]} 22... Rxf5 {[%clk 0:01:06.9]} 23. Qxe8+ {[%clk 0:02:27]}
23... Bf8 {[%clk 0:00:55.5]} 24. gxf5 {[%clk 0:02:22.4]} 24... Qb4 {[%clk
0:00:55.8]} 25. Re7 {[%clk 0:01:50.6]} 25... Qxe7 {[%clk 0:00:51.8]} 26. Qxe7
{[%clk 0:01:51.1]} 26... Bxe7 {[%clk 0:00:53.1]} 27. Re1 {[%clk 0:01:52.6]}
27... Bg5+ {[%clk 0:00:51.2]} 28. Kb1 {[%clk 0:01:51.2]} 28... h5 {[%clk
0:00:44.5]} 29. Re8+ {[%clk 0:01:50.9]} 29... Kh7 {[%clk 0:00:45.5]} 30. Rc8
{[%clk 0:01:49.3]} 30... Be3 {[%clk 0:00:39.1]} 31. Rxc6 {[%clk 0:01:48.6]}
31... Bxd4 {[%clk 0:00:40.8]} 32. Nxb5 {[%clk 0:01:47.2]} 32... Bb6 {[%clk
0:00:38]} 33. a4 {[%clk 0:01:42.4]} 33... Ne3 {[%clk 0:00:36.4]} 34. a5 {[%clk
0:01:40.3]} 34... Bxa5 {[%clk 0:00:37.2]} 35. Nxa7 {[%clk 0:01:41.4]} 35... Nxf5
{[%clk 0:00:37.7]} 36. Rc5 {[%clk 0:01:33.3]} 36... Bb6 {[%clk 0:00:38.8]} 37.
Rxd5 {[%clk 0:01:34.3]} 37... Kg6 {[%clk 0:00:38]} 38. Nc8 {[%clk 0:01:33.1]}
38... Bc7 {[%clk 0:00:36.4]} 39. Rd7 {[%clk 0:01:32.8]} 39... Be5 {[%clk
0:00:35.3]} 40. b4 {[%clk 0:01:32.1]} 40... Kf6 {[%clk 0:00:36.7]} 41. b5 {[%clk
0:01:26.6]} 41... Ke6 {[%clk 0:00:38]} 42. Rd1 {[%clk 0:01:25.7]} 42... Nd4
{[%clk 0:00:39]} 43. b6 {[%clk 0:01:20.7]} 43... Kd7 {[%clk 0:00:39.9]} 44. b7
{[%clk 0:01:20.2]} 44... Kc7 {[%clk 0:00:40.8]} 45. Re1 {[%clk 0:01:14]} 45...
Nc6 {[%clk 0:00:37.4]} 46. Ne7 {[%clk 0:01:08]} 46... Bd6 {[%clk 0:00:22.8]} 47.
Nxc6 {[%clk 0:01:07.2]} 47... Kxc6 {[%clk 0:00:24.4]} 48. Re6 {[%clk 0:01:08.2]}
1-0

[Event "*** Titled Tuesday 3|2 Blitz (Late)"]
[Site "Chess.com"]
[Date "2016.12.06"]
[Round "3"]
[White "AllStarShark"]
[Black "Kawhi_Leonard2"]
[Result "1-0"]
[WhiteElo "2344"]
[BlackElo "2218"]
[TimeControl "180+2"]
[EndTime "17:33:12 PST"]
[Termination "AllStarShark won on time"]

1. d4 {[%clk 0:03:02]} 1... Nf6 {[%clk 0:03:00.1]} 2. Bg5 {[%clk 0:03:02.3]}
2... Ne4 {[%clk 0:03:00.1]} 3. Bf4 {[%clk 0:03:03.1]} 3... d5 {[%clk 0:03:00.7]}
4. e3 {[%clk 0:03:00.5]} 4... c5 {[%clk 0:03:00.9]} 5. c3 {[%clk 0:02:56.9]}
5... e6 {[%clk 0:03:00.9]} 6. Bd3 {[%clk 0:02:53.3]} 6... Nc6 {[%clk 0:03:00.3]}
7. Bxe4 {[%clk 0:02:51.8]} 7... dxe4 {[%clk 0:03:00.7]} 8. Nd2 {[%clk
0:02:52.8]} 8... f5 {[%clk 0:02:59.7]} 9. Ne2 {[%clk 0:02:45.4]} 9... Be7 {[%clk
0:02:56.1]} 10. a3 {[%clk 0:02:38.5]} 10... O-O {[%clk 0:02:53.2]} 11. b4 {[%clk
0:02:18.1]} 11... b6 {[%clk 0:02:44.9]} 12. Qb3 {[%clk 0:02:07.4]} 12... Kh8
{[%clk 0:02:42.8]} 13. b5 {[%clk 0:02:04.3]} 13... Na5 {[%clk 0:02:40.7]} 14.
Qa2 {[%clk 0:02:04.5]} 14... Bd7 {[%clk 0:02:29.4]} 15. Rb1 {[%clk 0:01:49.7]}
15... Qe8 {[%clk 0:02:24.6]} 16. a4 {[%clk 0:01:46.6]} 16... Rc8 {[%clk
0:02:21.5]} 17. O-O {[%clk 0:01:32.6]} 17... Bf6 {[%clk 0:01:43.2]} 18. Bg3
{[%clk 0:01:25.6]} 18... e5 {[%clk 0:01:39.8]} 19. dxc5 {[%clk 0:01:12.8]} 19...
Rxc5 {[%clk 0:01:39]} 20. Nb3 {[%clk 0:01:12.3]} 20... Be6 {[%clk 0:01:35.7]}
21. Nec1 {[%clk 0:00:56.4]} 21... Nxb3 {[%clk 0:01:00.4]} 22. Nxb3 {[%clk
0:00:51]} 22... Rxc3 {[%clk 0:01:01.3]} 23. Qa3 {[%clk 0:00:34.3]} 23... Be7
{[%clk 0:00:43.4]} 24. Qa2 {[%clk 0:00:28.5]} 24... f4 {[%clk 0:00:39.5]} 25.
exf4 {[%clk 0:00:26.2]} 25... exf4 {[%clk 0:00:40.6]} 26. Bxf4 {[%clk
0:00:26.5]} 26... Rxf4 {[%clk 0:00:40.3]} 27. Qd2 {[%clk 0:00:27.4]} 27... Rxb3
{[%clk 0:00:11.3]} 28. Qxf4 {[%clk 0:00:24.4]} 28... Rxb1 {[%clk 0:00:09.6]} 29.
Rxb1 {[%clk 0:00:26.3]} 29... Bd5 {[%clk 0:00:07.5]} 30. Rc1 {[%clk 0:00:22.5]}
30... h6 {[%clk 0:00:03.8]} 31. Qe5 {[%clk 0:00:21.6]} 31... Qd8 {[%clk
0:00:02.3]} 32. Qf5 {[%clk 0:00:18.6]} 1-0

[Event "*** Titled Tuesday 3|2 Blitz (Late)"]
[Site "Chess.com"]
[Date "2016.12.06"]
[Round "3"]
[White "ShimanovAlex"]
[Black "Pierrebl"]
[Result "1-0"]
[WhiteElo "2658"]
[BlackElo "2453"]
[TimeControl "180+2"]
[EndTime "17:33:23 PST"]
[Termination "ShimanovAlex won by resignation"]

1. d4 {[%clk 0:02:59.2]} 1... Nf6 {[%clk 0:02:56.1]} 2. Nf3 {[%clk 0:02:59.4]}
2... d6 {[%clk 0:02:57.1]} 3. c4 {[%clk 0:02:56.8]} 3... g6 {[%clk 0:02:58]} 4.
Nc3 {[%clk 0:02:58]} 4... Bg7 {[%clk 0:02:59.4]} 5. e4 {[%clk 0:02:56.7]} 5...
O-O {[%clk 0:03:00.7]} 6. h3 {[%clk 0:02:54.6]} 6... Na6 {[%clk 0:03:01]} 7. Be3
{[%clk 0:02:53.6]} 7... e5 {[%clk 0:02:56.3]} 8. d5 {[%clk 0:02:54.4]} 8... Nh5
{[%clk 0:02:57.4]} 9. Nd2 {[%clk 0:02:50.8]} 9... Qe8 {[%clk 0:02:46.1]} 10. g3
{[%clk 0:01:55.2]} 10... f5 {[%clk 0:02:44.6]} 11. exf5 {[%clk 0:01:56.1]} 11...
gxf5 {[%clk 0:02:46.5]} 12. Be2 {[%clk 0:01:57.4]} 12... Nf6 {[%clk 0:02:41.5]}
13. Qc2 {[%clk 0:01:51.9]} 13... Nb4 {[%clk 0:02:26.5]} 14. Qb3 {[%clk
0:01:52.5]} 14... a5 {[%clk 0:02:26.6]} 15. a3 {[%clk 0:01:53.8]} 15... Na6
{[%clk 0:02:27]} 16. Qc2 {[%clk 0:01:54.5]} 16... Nc5 {[%clk 0:02:23.3]} 17.
O-O-O {[%clk 0:01:41.6]} 17... c6 {[%clk 0:02:10.7]} 18. g4 {[%clk 0:01:28.9]}
18... cxd5 {[%clk 0:02:10.1]} 19. cxd5 {[%clk 0:01:27.6]} 19... Bd7 {[%clk
0:01:56.1]} 20. Bxc5 {[%clk 0:01:26.4]} 20... dxc5 {[%clk 0:01:55.4]} 21. Nc4
{[%clk 0:01:22.3]} 21... e4 {[%clk 0:01:41]} 22. Nd6 {[%clk 0:01:14.5]} 22...
Qe5 {[%clk 0:01:39.5]} 23. Nxf5 {[%clk 0:01:11.2]} 23... Bxf5 {[%clk 0:01:37.3]}
24. gxf5 {[%clk 0:01:13.1]} 24... Qxf5 {[%clk 0:01:12.3]} 25. Kb1 {[%clk
0:01:07.7]} 25... Qxf2 {[%clk 0:00:59.3]} 26. d6 {[%clk 0:01:02.9]} 26... Kh8
{[%clk 0:01:00.1]} 27. d7 {[%clk 0:00:58]} 27... Rad8 {[%clk 0:00:57.2]} 28. Bb5
{[%clk 0:00:54]} 28... e3 {[%clk 0:00:46.1]} 29. Rhf1 {[%clk 0:00:44]} 29...
Qxc2+ {[%clk 0:00:34.6]} 30. Kxc2 {[%clk 0:00:45.9]} 30... Rf7 {[%clk
0:00:32.9]} 31. Rf3 {[%clk 0:00:45.5]} 31... Re7 {[%clk 0:00:32.5]} 32. Rf5
{[%clk 0:00:30]} 32... Nxd7 {[%clk 0:00:16.3]} 33. Ne2 {[%clk 0:00:24.8]} 33...
c4 {[%clk 0:00:06.6]} 34. Rfd5 {[%clk 0:00:25.3]} 34... c3 {[%clk 0:00:04.3]}
35. bxc3 {[%clk 0:00:25.8]} 35... Re5 {[%clk 0:00:04.3]} 36. Bxd7 {[%clk
0:00:25.2]} 36... Rxd5 {[%clk 0:00:05]} 37. Rxd5 {[%clk 0:00:27.1]} 37... Rf8
{[%clk 0:00:04.9]} 38. Kd3 {[%clk 0:00:27.5]} 1-0

[Event "*** Titled Tuesday 3|2 Blitz (Late)"]
[Site "Chess.com"]
[Date "2016.12.06"]
[Round "3"]
[White "stalyansky"]
[Black "jposthuma"]
[Result "1-0"]
[WhiteElo "2132"]
[BlackElo "2200"]
[TimeControl "180+2"]
[EndTime "17:33:28 PST"]
[Termination "stalyansky won by resignation"]

1. e4 {[%clk 0:03:02]} 1... c6 {[%clk 0:03:00.5]} 2. d4 {[%clk 0:03:02.3]} 2...
d5 {[%clk 0:03:02.4]} 3. exd5 {[%clk 0:03:03.3]} 3... cxd5 {[%clk 0:03:04.3]} 4.
Bd3 {[%clk 0:03:04.5]} 4... Nc6 {[%clk 0:03:05.3]} 5. c3 {[%clk 0:03:04.1]} 5...
Qc7 {[%clk 0:03:06.4]} 6. h3 {[%clk 0:03:03]} 6... Nf6 {[%clk 0:03:00.7]} 7. Nf3
{[%clk 0:03:03.1]} 7... e6 {[%clk 0:03:01.6]} 8. O-O {[%clk 0:03:03.8]} 8... Bd6
{[%clk 0:03:02.4]} 9. Re1 {[%clk 0:03:03.4]} 9... O-O {[%clk 0:03:03]} 10. Nbd2
{[%clk 0:01:34.6]} 10... Na5 {[%clk 0:01:45.9]} 11. Nf1 {[%clk 0:01:30.4]} 11...
Nc4 {[%clk 0:01:43.8]} 12. Qc2 {[%clk 0:01:10.4]} 12... h6 {[%clk 0:01:32.6]}
13. N1h2 {[%clk 0:00:45.1]} 13... b5 {[%clk 0:01:25.1]} 14. a3 {[%clk
0:00:43.3]} 14... Bd7 {[%clk 0:01:08.2]} 15. Ng4 {[%clk 0:00:25.4]} 15... Nxg4
{[%clk 0:01:08.6]} 16. hxg4 {[%clk 0:00:22.4]} 16... e5 {[%clk 0:00:26.6]} 17.
dxe5 {[%clk 0:00:21.2]} 17... Nxe5 {[%clk 0:00:28.5]} 18. Nxe5 {[%clk
0:00:21.9]} 18... Bxe5 {[%clk 0:00:30.4]} 19. g5 {[%clk 0:00:20]} 19... hxg5
{[%clk 0:00:32.3]} 20. Bxg5 {[%clk 0:00:20]} 20... d4 {[%clk 0:00:26.6]} 21.
Bh7+ {[%clk 0:00:17.2]} 21... Kh8 {[%clk 0:00:26.6]} 22. Qe4 {[%clk 0:00:16.2]}
22... Rfe8 {[%clk 0:00:06.5]} 23. Qh4 {[%clk 0:00:15.5]} 23... f6 {[%clk
0:00:03.7]} 24. Bg6+ {[%clk 0:00:16.3]} 24... Kg8 {[%clk 0:00:05]} 25. Qh7+
{[%clk 0:00:15.9]} 25... Kf8 {[%clk 0:00:06.4]} 26. Qh8+ {[%clk 0:00:09.8]}
26... Ke7 {[%clk 0:00:07.9]} 27. Qxg7+ {[%clk 0:00:11]} 27... Kd6 {[%clk
0:00:09.5]} 28. cxd4 {[%clk 0:00:10.3]} 28... Bxd4 {[%clk 0:00:06.3]} 29. Bxe8
{[%clk 0:00:08.8]} 29... Rxe8 {[%clk 0:00:08.2]} 30. Bf4+ {[%clk 0:00:09.6]}
30... Be5 {[%clk 0:00:08.5]} 31. Qxf6+ {[%clk 0:00:10.4]} 31... Re6 {[%clk
0:00:09]} 32. Bxe5+ {[%clk 0:00:10.8]} 32... Kc6 {[%clk 0:00:10.3]} 33. Qxe6+
{[%clk 0:00:10.7]} 33... Bxe6 {[%clk 0:00:11.5]} 34. Bxc7 {[%clk 0:00:12.4]}
34... Bb3 {[%clk 0:00:12.3]} 35. Rac1+ {[%clk 0:00:12.5]} 35... Kd7 {[%clk
0:00:12.9]} 36. g4 {[%clk 0:00:13.8]} 36... Be6 {[%clk 0:00:13.6]} 37. g5 {[%clk
0:00:13.8]} 37... Bf5 {[%clk 0:00:14.8]} 38. Re5 {[%clk 0:00:15]} 38... Bg6
{[%clk 0:00:16.1]} 39. Ba5 {[%clk 0:00:15.7]} 39... a6 {[%clk 0:00:17.2]} 40.
Rce1 {[%clk 0:00:16.8]} 40... Kd6 {[%clk 0:00:18.7]} 41. f4 {[%clk 0:00:18]} 1-0

[Event "*** Titled Tuesday 3|2 Blitz (Late)"]
[Site "Chess.com"]
[Date "2016.12.06"]
[Round "3"]
[White "hypert"]
[Black "LornerAcosta"]
[Result "0-1"]
[WhiteElo "2277"]
[BlackElo "2378"]
[TimeControl "180+2"]
[EndTime "17:33:52 PST"]
[Termination "LornerAcosta won by checkmate"]

1. e4 {[%clk 0:03:02]} 1... b6 {[%clk 0:03:00.8]} 2. d4 {[%clk 0:03:02.2]} 2...
Bb7 {[%clk 0:03:02.5]} 3. Bd3 {[%clk 0:03:03.8]} 3... e6 {[%clk 0:03:03.3]} 4.
Nf3 {[%clk 0:03:03.8]} 4... c5 {[%clk 0:03:00.9]} 5. c4 {[%clk 0:02:57.2]} 5...
cxd4 {[%clk 0:03:00.8]} 6. Nxd4 {[%clk 0:02:57.9]} 6... Bb4+ {[%clk 0:02:57.3]}
7. Bd2 {[%clk 0:02:57.1]} 7... Bxd2+ {[%clk 0:02:58]} 8. Qxd2 {[%clk 0:02:59]}
8... Ne7 {[%clk 0:02:59.4]} 9. O-O {[%clk 0:02:55.6]} 9... O-O {[%clk
0:02:58.6]} 10. Nc3 {[%clk 0:02:55.6]} 10... Nbc6 {[%clk 0:02:58.9]} 11. Be2
{[%clk 0:02:49.3]} 11... Nxd4 {[%clk 0:02:57.8]} 12. Qxd4 {[%clk 0:02:51.2]}
12... f5 {[%clk 0:02:59.7]} 13. Rad1 {[%clk 0:02:42.4]} 13... Bc6 {[%clk
0:02:56]} 14. e5 {[%clk 0:02:32.4]} 14... f4 {[%clk 0:02:56.3]} 15. Bd3 {[%clk
0:02:26.6]} 15... Nf5 {[%clk 0:02:42.8]} 16. Bxf5 {[%clk 0:02:12.5]} 16... Rxf5
{[%clk 0:02:42]} 17. f3 {[%clk 0:02:12.3]} 17... Qg5 {[%clk 0:02:41.8]} 18. Ne4
{[%clk 0:02:09.9]} 18... Qh4 {[%clk 0:02:40]} 19. b4 {[%clk 0:02:00]} 19... Rd8
{[%clk 0:02:10.8]} 20. Rf2 {[%clk 0:01:52.5]} 20... Rh5 {[%clk 0:02:08.3]} 21.
h3 {[%clk 0:01:52.7]} 21... Bxe4 {[%clk 0:01:56.4]} 22. Qxe4 {[%clk 0:01:47.5]}
22... Qg5 {[%clk 0:01:56.5]} 23. Rfd2 {[%clk 0:01:34.2]} 23... Qxe5 {[%clk
0:01:38.4]} 24. Rxd7 {[%clk 0:01:20.1]} 24... Rxd7 {[%clk 0:01:36.4]} 25. Qa8+
{[%clk 0:01:20.7]} 25... Kf7 {[%clk 0:01:36.5]} 26. Rxd7+ {[%clk 0:01:21.3]}
26... Kg6 {[%clk 0:01:36.5]} 27. Qe4+ {[%clk 0:00:58.9]} 27... Qxe4 {[%clk
0:01:36.8]} 28. fxe4 {[%clk 0:01:00.8]} 28... a5 {[%clk 0:01:34.9]} 29. b5
{[%clk 0:00:56.7]} 29... Rc5 {[%clk 0:01:31.2]} 30. Rd6 {[%clk 0:00:57.6]} 30...
Kf6 {[%clk 0:01:24.6]} 31. Rxb6 {[%clk 0:00:49.6]} 31... Rxc4 {[%clk 0:01:25.7]}
32. Ra6 {[%clk 0:00:50.5]} 32... Ra4 {[%clk 0:01:26.5]} 33. b6 {[%clk
0:00:50.6]} 33... Rxa2 {[%clk 0:01:27.3]} 34. b7 {[%clk 0:00:44.4]} 34... Rb2
{[%clk 0:01:28]} 35. Rxa5 {[%clk 0:00:39.9]} 35... Rxb7 {[%clk 0:01:28.3]} 36.
Kf2 {[%clk 0:00:41.3]} 36... Rb3 {[%clk 0:01:28.4]} 37. Rc5 {[%clk 0:00:40]}
37... h6 {[%clk 0:01:28.4]} 38. Ra5 {[%clk 0:00:38.9]} 38... Re3 {[%clk
0:01:28.9]} 39. Ra4 {[%clk 0:00:38.9]} 39... g5 {[%clk 0:01:28.9]} 40. h4 {[%clk
0:00:35.3]} 40... gxh4 {[%clk 0:01:27.4]} 41. Ra5 {[%clk 0:00:32.6]} 41... h3
{[%clk 0:01:15.9]} 42. Rh5 {[%clk 0:00:26.1]} 42... hxg2 {[%clk 0:01:16.6]} 43.
Kxg2 {[%clk 0:00:24.2]} 43... Rxe4 {[%clk 0:01:15.7]} 44. Kf3 {[%clk 0:00:24.4]}
44... Kg6 {[%clk 0:01:09]} 45. Ra5 {[%clk 0:00:24]} 45... Rb4 {[%clk 0:01:08.2]}
46. Re5 {[%clk 0:00:24.9]} 46... Kf6 {[%clk 0:01:06.5]} 47. Rh5 {[%clk
0:00:25.9]} 47... e5 {[%clk 0:00:59.8]} 48. Rxh6+ {[%clk 0:00:26.3]} 48... Kf5
{[%clk 0:01:01.4]} 49. Rh5+ {[%clk 0:00:27.2]} 49... Ke6 {[%clk 0:01:02.7]} 50.
Rh8 {[%clk 0:00:27.5]} 50... Rb3+ {[%clk 0:01:03.4]} 51. Ke4 {[%clk 0:00:25]}
51... Re3# {[%clk 0:01:04.1]} 0-1

[Event "*** Titled Tuesday 3|2 Blitz (Late)"]
[Site "Chess.com"]
[Date "2016.12.06"]
[Round "3"]
[White "Quiet_Desperation"]
[Black "josiwales"]
[Result "1-0"]
[WhiteElo "2309"]
[BlackElo "2234"]
[TimeControl "180+2"]
[EndTime "17:33:53 PST"]
[Termination "Quiet_Desperation won by resignation"]

1. e4 {[%clk 0:03:01.9]} 1... c5 {[%clk 0:03:00.7]} 2. Nf3 {[%clk 0:03:00.6]}
2... Nc6 {[%clk 0:03:01.9]} 3. d4 {[%clk 0:03:01.8]} 3... cxd4 {[%clk
0:03:03.8]} 4. Nxd4 {[%clk 0:03:03.3]} 4... g6 {[%clk 0:03:04.7]} 5. Nb3 {[%clk
0:02:57.7]} 5... Bg7 {[%clk 0:03:05]} 6. Bd3 {[%clk 0:02:58]} 6... Nf6 {[%clk
0:03:06.2]} 7. O-O {[%clk 0:02:59.2]} 7... O-O {[%clk 0:03:07.5]} 8. Nc3 {[%clk
0:03:00.5]} 8... d5 {[%clk 0:03:08.7]} 9. exd5 {[%clk 0:03:00.2]} 9... Nxd5
{[%clk 0:03:10.6]} 10. Nxd5 {[%clk 0:03:01.2]} 10... Qxd5 {[%clk 0:03:03.6]} 11.
Qe2 {[%clk 0:03:01]} 11... Be6 {[%clk 0:02:58.8]} 12. Be4 {[%clk 0:02:38.7]}
12... Qc4 {[%clk 0:02:52.5]} 13. Bd3 {[%clk 0:02:35.3]} 13... Qd5 {[%clk
0:02:49.5]} 14. Re1 {[%clk 0:02:19.5]} 14... Rad8 {[%clk 0:02:45.7]} 15. Be4
{[%clk 0:02:08.2]} 15... Qc4 {[%clk 0:02:43.5]} 16. Qxc4 {[%clk 0:02:09.1]}
16... Bxc4 {[%clk 0:02:43.4]} 17. c3 {[%clk 0:02:04.2]} 17... e6 {[%clk
0:02:39.5]} 18. Be3 {[%clk 0:01:59.7]} 18... Bd5 {[%clk 0:02:23.5]} 19. Bxd5
{[%clk 0:01:56.6]} 19... Rxd5 {[%clk 0:02:22.3]} 20. Kf1 {[%clk 0:01:54.2]}
20... Rfd8 {[%clk 0:02:22.4]} 21. Ke2 {[%clk 0:01:54.6]} 21... b6 {[%clk
0:02:23.2]} 22. Rad1 {[%clk 0:01:52.7]} 22... f5 {[%clk 0:02:17.1]} 23. Rxd5
{[%clk 0:01:52.1]} 23... Rxd5 {[%clk 0:02:14.3]} 24. Rd1 {[%clk 0:01:53]} 24...
Kf7 {[%clk 0:02:04.4]} 25. Rxd5 {[%clk 0:01:51.6]} 25... exd5 {[%clk 0:02:03.7]}
26. f4 {[%clk 0:01:41.3]} 26... Ke6 {[%clk 0:01:59.8]} 27. Kd3 {[%clk
0:01:42.2]} 27... Kd6 {[%clk 0:01:54.6]} 28. Bd4 {[%clk 0:01:35.2]} 28... Bxd4
{[%clk 0:01:48.9]} 29. Nxd4 {[%clk 0:01:36]} 29... Nxd4 {[%clk 0:01:36.2]} 30.
Kxd4 {[%clk 0:01:34.7]} 30... h6 {[%clk 0:01:34.5]} 31. b4 {[%clk 0:01:19.4]}
31... a6 {[%clk 0:01:06.1]} 32. a4 {[%clk 0:01:15.4]} 32... g5 {[%clk 0:01:00]}
33. g3 {[%clk 0:01:05.7]} 33... g4 {[%clk 0:01:00]} 34. c4 {[%clk 0:00:54.3]}
34... dxc4 {[%clk 0:00:52.1]} 35. Kxc4 {[%clk 0:00:54.4]} 35... Kc6 {[%clk
0:00:27]} 36. Kd4 {[%clk 0:00:44.9]} 36... Kd6 {[%clk 0:00:27.9]} 37. Kc4 {[%clk
0:00:35.7]} 37... Kc6 {[%clk 0:00:19.1]} 38. Kd4 {[%clk 0:00:36.6]} 38... Kd6
{[%clk 0:00:20.4]} 39. Kc4 {[%clk 0:00:33]} 39... Kc6 {[%clk 0:00:20.1]} 40. Kd4
{[%clk 0:00:34]} 40... Kd6 {[%clk 0:00:20.8]} 41. Kc4 {[%clk 0:00:28.8]} 41...
h5 {[%clk 0:00:21.9]} 42. a5 {[%clk 0:00:17.1]} 42... bxa5 {[%clk 0:00:18.7]}
43. bxa5 {[%clk 0:00:18.4]} 43... Kc6 {[%clk 0:00:19.9]} 44. Kd4 {[%clk
0:00:19.4]} 44... Kb5 {[%clk 0:00:20.2]} 45. Ke5 {[%clk 0:00:20.9]} 45... Kxa5
{[%clk 0:00:21.6]} 46. Kxf5 {[%clk 0:00:22.5]} 46... Kb4 {[%clk 0:00:22.7]} 47.
Kg6 {[%clk 0:00:22.9]} 47... a5 {[%clk 0:00:24.2]} 48. f5 {[%clk 0:00:24.5]}
48... a4 {[%clk 0:00:25.6]} 49. f6 {[%clk 0:00:26.1]} 49... a3 {[%clk
0:00:27.1]} 50. f7 {[%clk 0:00:27.7]} 50... a2 {[%clk 0:00:28.5]} 51. f8=Q+
{[%clk 0:00:29.3]} 51... Kb3 {[%clk 0:00:29.9]} 52. Qf6 {[%clk 0:00:26.9]} 52...
Kc2 {[%clk 0:00:31.2]} 53. Qa1 {[%clk 0:00:27.8]} 1-0